bitfinex-derivatives/quotes_SOLF0:USTF0_20250207
["timestamp","ask_amount","ask_price","bid_price","bid_amount"]
[1738970133935,9.52359824,190.63,190.6,0.03317152]
[1738970136038,14.73187091,190.61,190.6,0.03317152]
[1738970136233,9.48637091,190.61,190.51,9.48637091]
[1738970136429,9.48637091,190.55,190.49,9.48637091]
[1738970136634,9.48637091,190.53,190.47,9.48637091]
[1738970136834,9.48637091,190.53,190.46,1.5592]
[1738970137140,9.48637091,190.53,190.48,5.249]
[1738970137344,0.03803278,190.51,190.48,5.28358387]
[1738970137737,9.52440369,190.51,190.48,5.28358387]
[1738970137932,9.52440369,190.51,190.48,0.03458387]
[1738970139141,9.48637091,190.49,190.48,0.03458387]
[1738970144742,14.73517091,190.49,190.48,0.03458387]
[1738970145043,9.48637091,190.49,190.48,0.03458387]
[1738970150349,0.03803278,190.51,190.48,0.03458387]
[1738970150543,0.03803278,190.51,190.49,9.48637091]
[1738970150847,9.48637091,190.57,190.51,5.2481]
[1738970151046,9.48637091,190.59,190.52,9.48637091]
[1738970151247,9.48637091,190.59,190.54,9.48637091]
[1738970151942,9.48637091,190.59,190.57,5.2466]
[1738970152139,0.03416479,190.58,190.57,5.2466]
[1738970154048,0.03416479,190.58,190.55,0.03864871]
[1738970154240,9.48637091,190.57,190.55,0.03864871]
[1738970154443,9.48637091,190.57,190.56,5.2469]
[1738970155844,9.48637091,190.57,190.55,0.03864871]
[1738970156645,9.48637091,190.57,190.5,3.1137]
[1738970156847,9.48637091,190.51,190.45,1.6514]
[1738970157046,9.48637091,190.51,190.47,5.2492]
[1738970157250,9.48637091,190.51,190.45,1.6514]
[1738970157449,9.48637091,190.49,190.45,1.6514]
[1738970157849,9.48637091,190.47,190.45,1.6514]
[1738970158050,9.48637091,190.47,190.45,1.68493517]
[1738970158249,9.48637091,190.47,190.45,0.03353517]
[1738970158652,14.89005994,190.47,190.45,0.03353517]
[1738970159452,20.13945994,190.47,190.45,0.03353517]
[1738970160153,14.89005994,190.47,190.45,0.03353517]
[1738970160657,0.03717956,190.49,190.45,0.03353517]
[1738970161051,191.0,190.58,190.45,0.03353517]
[1738970161052,14.89005994,190.56,190.45,0.03353517]
[1738970161448,14.89005994,190.56,190.44,14.89005994]
[1738970162352,0.03965748,190.52,190.48,0.0365073]
[1738970162856,0.03965748,190.52,190.51,5.2482]
[1738970163953,0.03965748,190.52,190.49,3.2681]
[1738970165760,0.03965748,190.52,190.51,5.2482]
[1738970166261,0.03965748,190.52,190.48,5.2856073]
[1738970166558,0.03965748,190.52,190.48,0.0365073]
[1738970167864,0.03965748,190.52,190.51,5.2482]
[1738970168054,0.03965748,190.52,190.48,0.0365073]
[1738970169759,5.2483,190.51,190.48,0.0365073]
[1738970169962,0.03965748,190.52,190.48,0.0365073]
[1738970171158,0.03965748,190.52,190.5,5.2483]
[1738970171961,0.03965748,190.52,190.48,0.0365073]
[1738970172353,0.03965748,190.52,190.51,5.2482]
[1738970174161,0.03965748,190.52,190.49,5.2487]
[1738970174661,0.03965748,190.52,190.48,0.0365073]
[1738970175264,0.03965748,190.52,190.48,5.2855073]
[1738970175461,0.03965748,190.52,190.48,0.0365073]
[1738970175963,0.03965748,190.52,190.49,5.2486]
[1738970176167,5.748e-05,190.52,190.48,0.0365073]
[1738970176366,5.748e-05,190.52,190.48,14.92656724]
[1738970176668,5.748e-05,190.52,190.49,1.5211]
[1738970176866,5.748e-05,190.52,190.51,5.2482]
[1738970177055,191.0,190.62,190.51,20.13825994]
[1738970177261,5.2447,190.64,190.57,5.2463]
[1738970177461,14.89005994,190.65,190.51,14.89005994]
[1738970178472,0.03463302,190.6,190.56,0.03464331]
[1738970178870,0.03463302,190.6,190.59,5.246]
[1738970180767,0.03463302,190.6,190.57,5.2465]
[1738970180964,0.03463302,190.6,190.56,0.03464331]
[1738970181460,0.03463302,190.6,190.59,5.246]
[1738970181763,0.03463302,190.6,190.56,0.03464331]
[1738970182166,0.03463302,190.6,190.59,5.246]
[1738970182567,0.03463302,190.6,190.56,0.03464331]
[1738970183767,5.28053302,190.6,190.56,0.03464331]
[1738970184065,0.03463302,190.6,190.56,0.03464331]
[1738970184470,5.28043302,190.6,190.56,0.03464331]
[1738970184767,14.89005994,190.59,190.56,0.03464331]
[1738970185570,5.2466,190.57,190.56,0.03464331]
[1738970189876,14.89005994,190.59,190.49,1.5211]
[1738970190074,20.13745994,190.55,190.49,1.5211]
[1738970190476,14.89005994,190.55,190.49,1.5211]
[1738970190776,14.89005994,190.58,190.49,1.5211]
[1738970190973,191.0,190.6,190.58,5.2461]
[1738970191372,191.0,190.6,190.52,0.03324305]
[1738970191573,191.0,190.6,190.5,1.5134]
[1738970191776,191.0,190.6,190.54,0.03973521]
[1738970192175,0.03614789,190.59,190.55,5.2471]
[1738970192582,5.28214789,190.59,190.54,5.28713521]
[1738970193275,0.03614789,190.59,190.54,0.03973521]
[1738970193481,0.03614789,190.59,190.55,5.247]
[1738970194077,5.28224789,190.59,190.54,0.03973521]
[1738970195783,5.28224789,190.59,190.54,5.28703521]
[1738970196384,14.89005994,190.58,190.54,0.03973521]
[1738970196577,14.89005994,190.55,190.54,0.03973521]
[1738970198380,14.89005994,190.58,190.54,5.28713521]
[1738970199995,14.89005994,190.58,190.54,0.03973521]
[1738970200690,14.89005994,190.58,190.55,5.2471]
[1738970204991,0.03614789,190.59,190.57,5.2466]
[1738970205189,14.89005994,190.64,190.54,0.03973521]
[1738970205389,14.89005994,190.64,190.54,1.5635]
[1738970206091,14.89005994,190.64,190.57,5.2466]
[1738970206292,14.89005994,190.61,190.54,1.5635]
[1738970206500,14.89005994,190.61,190.59,0.0337691]
[1738970206689,9.51574901,190.6,190.59,0.0337691]
[1738970207795,9.51574901,190.6,190.5,1.5134]
[1738970207998,9.51574901,190.55,190.51,5.2482]
[1738970208698,9.51574901,190.53,190.51,5.2482]
[1738970210699,0.03990276,190.54,190.51,5.2482]
[1738970214301,0.03990276,190.54,190.52,5.2479]
[1738970216306,0.03990276,190.54,190.5,1.54940073]
[1738970216604,0.03990276,190.54,190.53,5.2477]
[1738970218705,0.03990276,190.54,190.5,1.54940073]
[1738970218905,0.03990276,190.54,190.52,5.2477]
[1738970220199,0.03990276,190.54,190.53,5.2477]
[1738970221209,205.87629812,190.62,190.57,5.2463]
[1738970221408,205.87629812,190.62,190.5,1.5134]
[1738970221609,191.0,190.62,190.52,14.87629812]
[1738970221807,57.85694508,190.68,190.55,14.87629812]
[1738970221999,72.7332432,190.68,190.55,14.87629812]
[1738970222507,0.03366087,190.63,190.6,0.03393671]
[1738970223008,0.03366087,190.63,190.62,5.2452]
[1738970223503,0.03366087,190.63,190.6,0.03393671]
[1738970223504,57.85694508,190.7,190.68,5.2433]
[1738970226014,0.02939621,190.71,190.68,5.2433]
[1738970230014,0.02939621,190.71,190.67,0.03856074]
[1738970230612,0.02939621,190.71,190.67,5.28216074]
[1738970231319,0.02939621,190.71,190.7,5.243]
[1738970231817,14.87629812,190.77,190.74,5.2419]
[1738970232218,14.87629812,190.77,190.67,14.87629812]
[1738970232420,14.87629812,190.8,190.67,14.87629812]
[1738970232915,14.87629812,190.8,190.77,5.241]
[1738970233121,14.87629812,190.83,190.7,14.87629812]
[1738970233310,14.87629812,190.8,190.72,0.03459306]
[1738970233719,14.87629812,190.77,190.71,3.1846]
[1738970234020,20.11739812,190.77,190.74,0.0387969]
[1738970234419,14.87629812,190.77,190.74,0.0387969]
[1738970234621,5.2416,190.75,190.74,0.0387969]
[1738970235520,14.87629812,190.77,190.74,0.0387969]
[1738970236123,14.87629812,190.8,190.76,5.2414]
[1738970236620,14.87629812,190.83,190.74,0.0387969]
[1738970236819,14.87629812,190.83,190.79,5.2405]
[1738970237327,20.11579812,190.83,190.76,5.2411]
[1738970237527,14.87629812,190.83,190.79,0.03514445]
[1738970238322,20.11599812,190.83,190.79,0.03514445]
[1738970239328,5.24,190.82,190.79,0.03514445]
[1738970239828,14.87629812,190.83,190.79,0.03514445]
[1738970240028,20.11579812,190.83,190.79,0.03514445]
[1738970241526,14.87629812,190.83,190.79,0.03514445]
[1738970241930,14.87629812,190.83,190.8,5.2402]
[1738970242631,14.87629812,190.83,190.79,5.27564445]
[1738970242930,14.87629812,190.83,190.79,0.03514445]
[1738970243331,20.11579812,190.83,190.79,0.03514445]
[1738970244831,14.87629812,190.83,190.8,5.2402]
[1738970247228,14.87629812,190.83,190.79,0.03514445]
[1738970247927,5.2398,190.82,190.79,0.03514445]
[1738970248534,20.11659812,190.8,190.79,0.03514445]
[1738970249330,14.87629812,190.8,190.79,0.03514445]
[1738970250331,14.87629812,190.83,190.79,0.03514445]
[1738970250732,5.24,190.82,190.79,0.03514445]
[1738970251031,14.87629812,190.83,190.79,0.03514445]
[1738970251531,14.87629812,190.83,190.8,5.2401]
[1738970251738,14.87629812,190.86,190.79,0.03514445]
[1738970251937,14.87629812,190.89,190.79,0.03514445]
[1738970252235,14.87629812,190.89,190.82,0.03744088]
[1738970253238,14.87629812,190.86,190.82,0.03744088]
[1738970253841,14.87629812,190.83,190.82,0.03744088]
[1738970256936,14.87629812,190.83,190.74,1.6545]
[1738970257138,14.87629812,190.78,190.74,1.6545]
[1738970257538,14.87629812,190.78,190.75,5.2416]
[1738970257739,5.2405,190.8,190.75,5.2416]
[1738970258238,0.03744088,190.79,190.76,0.03501034]
[1738970258939,0.03744088,190.79,190.77,5.2408]
[1738970260337,0.03744088,190.79,190.78,5.2408]
[1738970260540,0.03744088,190.79,190.76,0.03501034]
[1738970261938,0.03744088,190.79,190.77,5.241]
[1738970262540,0.03744088,190.79,190.76,0.03501034]
[1738970262742,0.03744088,190.79,190.76,5.27631034]
[1738970263040,0.03744088,190.79,190.76,0.03501034]
[1738970264437,0.03744088,190.79,190.76,5.27621034]
[1738970264739,0.03744088,190.79,190.76,0.03501034]
[1738970265533,0.03744088,190.79,190.77,5.2411]
[1738970265736,0.03744088,190.79,190.76,0.03501034]
[1738970266039,14.87629812,190.78,190.76,0.03501034]
[1738970266739,20.11729812,190.78,190.76,0.03501034]
[1738970267834,0.03744088,190.79,190.76,0.03501034]
[1738970268138,0.03744088,190.79,190.77,5.241]
[1738970268345,0.03744088,190.79,190.76,0.03501034]
[1738970268646,0.03744088,190.79,190.78,5.2408]
[1738970270637,0.03744088,190.79,190.77,5.241]
[1738970270845,0.03744088,190.79,190.76,0.03501034]
[1738970271741,0.03744088,190.79,190.76,5.27621034]
[1738970276643,0.03744088,190.79,190.76,0.03501034]
[1738970278647,9.49698058,190.78,190.76,0.03501034]
[1738970280741,9.49698058,190.78,190.76,5.27621034]
[1738970280951,9.49698058,190.88,190.77,9.49698058]
[1738970281138,9.49698058,190.88,190.8,9.49698058]
[1738970281543,9.49698058,190.88,190.84,5.2389]
[1738970282242,9.49698058,190.88,190.84,5.27566556]
[1738970282647,77.91838327,190.9,190.84,5.27566556]
[1738970283440,5.2378,190.89,190.84,0.03676556]
[1738970283839,14.82393819,190.87,190.84,0.03676556]
[1738970284039,5.2387,190.86,190.84,0.03676556]
[1738970284246,14.82393819,190.87,190.84,0.03676556]
[1738970284449,14.82393819,190.9,190.85,5.2389]
[1738970285449,14.82393819,190.9,190.84,0.03676556]
[1738970285645,20.06153819,190.9,190.84,5.27586556]
[1738970287450,20.06153819,190.9,190.85,5.2388]
[1738970289049,5.2382,190.88,190.84,0.03676556]
[1738970289251,14.82393819,190.87,190.84,0.03676556]
[1738970289753,20.06243819,190.87,190.84,0.03676556]
[1738970289953,14.82393819,190.87,190.84,0.03676556]
[1738970290247,5.2389,190.85,190.84,0.03676556]
[1738970291244,5.2387,190.86,190.84,0.03676556]
[1738970293049,14.82393819,190.87,190.84,0.03676556]
[1738970293255,5.2389,190.85,190.84,0.03676556]
[1738970295454,14.82393819,190.87,190.84,0.03676556]
[1738970295653,5.2387,190.86,190.84,0.03676556]
[1738970295855,14.82393819,190.9,190.84,0.03676556]
[1738970296552,20.06163819,190.9,190.86,5.2386]
[1738970297956,14.82393819,190.9,190.89,5.2378]
[1738970298257,14.82393819,190.9,190.84,0.03676556]
[1738970299658,20.06163819,190.9,190.85,5.2388]
[1738970300756,5.2378,190.89,190.85,5.2388]
[1738970301058,14.82393819,190.9,190.84,0.03676556]
[1738970301259,14.82393819,190.93,190.84,0.03676556]
[1738970303562,14.82393819,190.99,190.89,14.82393819]
[1738970303756,14.82393819,190.99,190.9,4.8218]
[1738970303959,63.09154508,191.01,190.94,5.2362]
[1738970304157,57.85694508,191.01,190.92,0.0392068]
[1738970304364,14.82393819,191.02,190.92,0.0392068]
[1738970304561,72.68088327,191.05,190.92,0.0392068]
[1738970304858,9.47307479,191.02,190.95,9.47307479]
[1738970305054,9.47307479,191.02,190.97,0.03424996]
[1738970305455,57.85694508,191.05,191.01,9.47307479]
[1738970305963,57.85694508,191.05,191.01,9.50854388]
[1738970306162,57.85694508,191.05,191.01,5.26976909]
[1738970306867,57.85694508,191.05,191.01,0.03546909]
[1738970307168,20.02757219,191.09,191.01,0.03546909]
[1738970307864,20.02757219,191.09,191.01,5.26986909]
[1738970308168,14.79517219,191.09,191.01,0.03546909]
[1738970308668,14.79517219,191.12,191.01,0.03546909]
[1738970308869,14.79517219,191.12,190.99,17.94107219]
[1738970309075,14.79517219,191.12,191.05,0.03314563]
[1738970309273,14.79517219,191.12,191.05,5.26654563]
[1738970310265,14.79517219,191.12,191.05,0.03314563]
[1738970311062,14.79517219,191.12,191.07,5.2328]
[1738970311263,14.79517219,191.12,191.05,0.03314563]
[1738970311771,14.79517219,191.09,191.05,0.03314563]
[1738970312170,14.79517219,191.09,190.99,17.94107219]
[1738970312474,14.79517219,191.09,191.05,0.03747335]
[1738970315772,20.02757219,191.09,191.05,0.03747335]
[1738970315977,14.79517219,191.09,191.05,0.03747335]
[1738970316472,5.2326,191.08,191.05,0.03747335]
[1738970316772,14.79517219,191.09,191.05,0.03747335]
[1738970316978,14.79517219,191.13,191.05,0.03747335]
[1738970317478,14.79517219,191.13,191.07,0.03445373]
[1738970319177,14.79517219,191.1,191.07,0.03445373]
[1738970319371,20.02747219,191.1,191.07,0.03445373]
[1738970320075,14.79517219,191.1,191.07,0.03445373]
[1738970320884,5.2326,191.09,191.07,0.03445373]
[1738970321281,14.79517219,191.1,191.07,0.03445373]
[1738970321481,1.6448,191.18,191.07,5.26735373]
[1738970321482,14.79517219,191.13,191.07,5.26735373]
[1738970321683,14.79517219,191.16,191.07,0.03445373]
[1738970322183,14.79517219,191.16,191.02,14.79517219]
[1738970322383,14.79517219,191.13,191.1,0.03600815]
[1738970322683,14.79517219,191.13,191.02,14.79517219]
[1738970323184,14.79517219,191.13,191.1,0.04013303]
[1738970323383,14.79517219,191.13,191.07,5.2327]
[1738970323589,14.79517219,191.13,191.1,0.03949351]
[1738970323982,14.79517219,191.22,191.08,14.79517219]
[1738970324178,14.79517219,191.22,191.09,4.7656]
[1738970324384,14.79517219,191.22,191.1,0.03899668]
[1738970324583,14.79517219,191.22,191.14,5.2308]
[1738970324780,14.79517219,191.22,191.1,0.03899668]
[1738970324985,14.79517219,191.22,191.09,4.7656]
[1738970325582,14.79517219,191.22,191.14,0.03798604]
[1738970325788,14.79517219,191.25,191.14,0.03798604]
[1738970326385,5.2282,191.24,191.11,14.79517219]
[1738970326590,5.2282,191.24,191.18,0.03925285]
[1738970328192,5.2289,191.22,191.18,0.03925285]
[1738970329091,14.79517219,191.28,191.18,0.03925285]
[1738970329292,14.79517219,191.35,191.23,14.79517219]
[1738970329487,14.79517219,191.38,191.23,14.79517219]
[1738970329787,14.79517219,191.41,191.29,14.79517219]
[1738970329983,14.79517219,191.41,191.3,4.8785]
[1738970330587,14.79517219,191.41,191.34,0.0383424]
[1738970331094,5.2246,191.38,191.34,0.0383424]
[1738970331885,5.2248,191.37,191.34,0.0383424]
[1738970332083,14.79517219,191.41,191.34,0.0383424]
[1738970332286,14.79517219,191.38,191.34,0.0383424]
[1738970332493,14.79517219,191.35,191.23,14.79517219]
[1738970332794,14.79517219,191.38,191.24,1.5073]
[1738970332995,5.2252,191.35,191.28,5.2269]
[1738970333293,14.79517219,191.38,191.24,3.1175]
[1738970333493,20.01887219,191.41,191.31,5.2261]
[1738970333691,14.79517219,191.47,191.35,14.79517219]
[1738970333895,14.79517219,191.5,191.36,3.1175]
[1738970334096,14.79517219,191.47,191.36,3.1175]
[1738970334290,0.03765686,191.43,191.38,5.2243]
[1738970334696,0.03765686,191.43,191.4,0.03792191]
[1738970335195,14.79517219,191.56,191.41,14.79517219]
[1738970335395,14.79517219,191.53,191.41,14.79517219]
[1738970335694,1.5668,191.57,191.41,14.79517219]
[1738970335695,14.79517219,191.56,191.41,14.79517219]
[1738970335993,1.5668,191.57,191.4,14.79517219]
[1738970336299,6.7861,191.57,191.43,14.79517219]
[1738970336597,23.56991365,191.54,191.47,0.03487461]
[1738970336997,23.56991365,191.5,191.36,3.1175]
[1738970337297,5.2226,191.45,191.36,3.1175]
[1738970338297,0.03396802,191.42,191.39,0.03692066]
[1738970338790,23.56991365,191.5,191.39,0.03692066]
[1738970338996,0.03487461,191.42,191.39,0.03692066]
[1738970339386,23.56991365,191.5,191.39,0.03692066]
[1738970339685,0.03487461,191.42,191.39,0.03692066]
[1738970340197,23.56991365,191.5,191.39,0.03692066]
[1738970340494,0.03487461,191.42,191.39,0.03692066]
[1738970340694,23.56991365,191.5,191.39,0.03692066]
[1738970340889,5.2218,191.48,191.39,0.03692066]
[1738970341098,0.03487461,191.42,191.39,0.03692066]
[1738970341296,5.2218,191.48,191.39,0.03692066]
[1738970341499,0.03487461,191.42,191.39,0.03692066]
[1738970347902,0.03487461,191.42,191.39,5.26102066]
[1738970348104,0.03487461,191.42,191.39,0.03692066]
[1738970352010,5.25837461,191.42,191.39,0.03692066]
[1738970352309,0.03487461,191.42,191.39,0.03692066]
[1738970352708,0.03487461,191.42,191.32,5.226]
[1738970352709,5.2242,191.39,191.32,5.226]
[1738970353513,5.2239,191.4,191.34,5.2253]
[1738970353707,23.56991365,191.44,191.34,5.2253]
[1738970353911,0.03350651,191.39,191.35,0.03813686]
[1738970354309,5.25770651,191.39,191.35,0.03813686]
[1738970354514,0.03350651,191.39,191.35,0.03813686]
[1738970354811,5.2244,191.38,191.35,0.03813686]
[1738970355718,0.03350651,191.39,191.35,0.03813686]
[1738970358825,0.03350651,191.39,191.36,5.2247]
[1738970359324,0.03350651,191.39,191.38,5.2244]
[1738970361427,14.74355712,191.51,191.38,14.74355712]
[1738970362123,5.2213,191.5,191.43,5.2228]
[1738970362529,0.03828875,191.48,191.45,0.0337843]
[1738970363226,5.25998875,191.48,191.45,0.0337843]
[1738970363424,20.00354587,191.48,191.45,0.0337843]
[1738970363922,14.78184587,191.48,191.45,0.0337843]
[1738970364226,5.222,191.47,191.45,0.0337843]
[1738970365324,14.78184587,191.48,191.45,0.0337843]
[1738970365620,14.74355712,191.61,191.47,14.74355712]
[1738970365826,14.74355712,191.61,191.54,5.2198]
[1738970366125,14.74355712,191.61,191.5,14.74355712]
[1738970366126,14.74355712,191.64,191.5,14.74355712]
[1738970366426,57.85694508,191.62,191.55,5.2195]
[1738970366628,57.85694508,191.62,191.48,3.1589]
[1738970366819,57.85694508,191.62,191.57,0.03482798]
[1738970367025,57.85694508,191.62,191.48,3.1589]
[1738970367226,57.85694508,191.62,191.52,5.2203]
[1738970367418,57.85694508,191.62,191.53,0.03788581]
[1738970367923,5.2184,191.6,191.53,5.25798581]
[1738970368727,57.85694508,191.62,191.56,5.2193]
[1738970369232,5.2189,191.59,191.57,0.03779357]
[1738970369529,5.2189,191.59,191.48,3.1589]
[1738970369732,5.2189,191.59,191.56,0.03537341]
[1738970369926,5.2189,191.59,191.48,3.1589]
[1738970370127,5.2189,191.59,191.56,0.03497356]
[1738970370327,5.2189,191.59,191.53,5.2201]
[1738970370631,5.2189,191.59,191.56,0.03783326]
[1738970370924,5.2189,191.59,191.48,3.1589]
[1738970371129,5.219,191.58,191.53,5.2201]
[1738970371330,23.54144438,191.61,191.52,0.03785564]
[1738970371831,5.2192,191.58,191.52,0.03785564]
[1738970372028,23.54144438,191.61,191.52,0.03785564]
[1738970372228,5.2197,191.56,191.52,0.03785564]
[1738970372533,23.54144438,191.61,191.52,0.03785564]
[1738970372832,5.2195,191.56,191.52,0.03785564]
[1738970374434,5.2188,191.59,191.55,5.2197]
[1738970374733,5.2188,191.59,191.48,3.1589]
[1738970374932,5.2188,191.59,191.55,0.03999233]
[1738970375132,23.54144438,191.61,191.55,0.03999233]
[1738970375535,5.2188,191.59,191.55,0.03999233]
[1738970376032,5.2186,191.6,191.55,0.03999233]
[1738970376233,23.54144438,191.61,191.55,0.03999233]
[1738970376732,5.2195,191.56,191.55,0.03999233]
[1738970378536,5.2204,191.53,191.5,5.221]
[1738970379233,5.2208,191.52,191.48,5.2215]
[1738970379534,5.2208,191.52,191.45,1.508]
[1738970379735,5.26036189,191.52,191.48,0.03413589]
[1738970380034,5.26036189,191.52,191.48,5.25573589]
[1738970380237,5.26036189,191.52,191.48,0.03413589]
[1738970380735,5.2208,191.51,191.48,0.03413589]
[1738970381332,0.03956189,191.52,191.48,0.03413589]
[1738970382034,5.2209,191.51,191.48,0.03413589]
[1738970382427,0.03956189,191.52,191.48,0.03413589]
[1738970382636,5.2213,191.5,191.48,0.03413589]
[1738970382835,23.58100627,191.52,191.48,0.03413589]
[1738970383330,5.2214,191.49,191.48,0.03413589]
[1738970386834,14.73173311,191.5,191.34,14.73173311]
[1738970387036,14.73173311,191.45,191.34,14.73173311]
[1738970387339,5.2229,191.44,191.4,5.2236]
[1738970387938,5.2231,191.43,191.4,0.03798186]
[1738970388140,0.03994826,191.44,191.4,0.03798186]
[1738970389143,0.03994826,191.44,191.4,5.26178186]
[1738970389343,0.03994826,191.44,191.4,0.03798186]
[1738970393739,14.73173311,191.43,191.4,0.03798186]
[1738970394542,19.95483311,191.43,191.4,0.03798186]
[1738970396349,5.2233,191.42,191.4,0.03798186]
[1738970396950,5.2239,191.4,191.33,5.2257]
[1738970397143,14.73173311,191.38,191.33,5.2257]
[1738970397348,14.73173311,191.38,191.31,4.6983]
[1738970397548,14.73173311,191.38,191.34,5.2255]
[1738970397751,14.73173311,191.38,191.31,4.6983]
[1738970398043,0.03561835,191.36,191.33,0.03540221]
[1738970398245,0.03561835,191.36,191.33,5.26110221]
[1738970398653,0.03561835,191.36,191.33,0.03540221]
[1738970398950,14.73173311,191.47,191.34,14.73173311]
[1738970399248,19.95393311,191.47,191.34,14.73173311]
[1738970399449,14.73173311,191.47,191.39,5.2239]
[1738970400047,0.03704418,191.45,191.41,0.03589765]
[1738970401152,5.25954418,191.45,191.41,0.03589765]
[1738970402455,14.73173311,191.43,191.41,0.03589765]
[1738970402649,14.73173311,191.43,191.31,4.6983]
[1738970402855,14.73173311,191.39,191.31,4.6983]
[1738970403247,14.73173311,191.39,191.34,5.2253]
[1738970403859,0.03504058,191.38,191.35,0.03707412]
[1738970405659,14.73173311,191.36,191.35,0.03707412]
[1738970405956,14.73173311,191.36,191.25,4.6783]
[1738970406856,14.73173311,191.36,191.25,19.41003311]
[1738970407056,14.73173311,191.36,191.33,5.2256]
[1738970407562,0.03819736,191.36,191.29,0.03936792]
[1738970408257,0.03819736,191.36,191.31,5.2261]
[1738970408561,0.03819736,191.36,191.29,0.03936792]
[1738970409661,5.26319736,191.36,191.31,5.2263]
[1738970409857,0.03819736,191.36,191.31,5.2263]
[1738970410158,14.73173311,191.34,191.29,5.26606792]
[1738970410360,14.73173311,191.34,191.29,0.03936792]
[1738970410757,19.95743311,191.34,191.29,0.03936792]
[1738970410957,14.73173311,191.34,191.29,0.03936792]
[1738970411657,14.73173311,191.31,191.29,0.03936792]
[1738970413362,19.95803311,191.31,191.29,0.03936792]
[1738970413562,14.73173311,191.31,191.29,0.03936792]
[1738970414958,5.2266,191.3,191.29,0.03936792]
[1738970415261,14.73173311,191.31,191.2,4.887]
[1738970415461,14.73173311,191.27,191.22,5.2285]
[1738970415853,14.73173311,191.27,191.2,4.887]
[1738970416354,14.73173311,191.24,191.13,43.04363155]
[1738970416558,14.73173311,191.24,191.22,0.03794738]
[1738970416861,14.73173311,191.24,191.21,0.03909826]
[1738970417657,19.96003311,191.24,191.21,0.03909826]
[1738970417854,14.73173311,191.24,191.14,4.7311]
[1738970418064,14.73173311,191.2,191.14,4.7311]
[1738970418370,14.73173311,191.2,191.15,5.2307]
[1738970418864,14.73173311,191.2,191.14,1.5296]
[1738970419063,0.03999678,191.19,191.16,0.03441505]
[1738970419258,14.73173311,191.17,191.16,0.03441505]
[1738970419955,5.2305,191.16,191.09,103.44]
[1738970420155,14.73173311,191.14,191.09,103.44]
[1738970420763,14.73173311,191.14,191.02,93.43120992]
[1738970420966,14.73173311,191.14,191.03,3.2235]
[1738970421167,0.03722579,191.1,191.06,0.04007286]
[1738970421467,14.73173311,191.11,191.03,3.2235]
[1738970421763,5.27051636,191.1,191.06,0.03391959]
[1738970422566,14.73173311,191.08,191.06,0.03391959]
[1738970424071,0.03841636,191.1,191.06,0.03391959]
[1738970424568,257.0,191.35,191.09,14.73173311]
[1738970424867,14.73173311,191.28,191.15,14.73173311]
[1738970425068,178.72504299,191.36,191.1,16.26513311]
[1738970425069,178.72504299,191.36,191.28,5.2271]
[1738970425262,178.72504299,191.36,191.24,14.73173311]
[1738970425460,178.72504299,191.36,191.25,1.5427]
[1738970425768,178.72504299,191.36,191.25,3.2145]
[1738970425963,0.03659347,191.3,191.26,0.03886594]
[1738970428365,57.85694508,191.43,191.27,23.60030132]
[1738970428558,57.85694508,191.43,191.3,23.60030132]
[1738970429065,1.5739,191.45,191.36,5.2249]
[1738970429569,0.03448682,191.42,191.39,0.03594051]
[1738970431468,5.2238,191.41,191.39,0.03594051]
[1738970431770,23.60030132,191.41,191.39,0.03594051]
[1738970432870,5.2238,191.4,191.39,0.03594051]
[1738970433072,23.60030132,191.41,191.39,0.03594051]
[1738970433371,28.82390132,191.41,191.39,0.03594051]
[1738970433974,23.60030132,191.41,191.39,0.03594051]
[1738970437369,23.60030132,191.41,191.28,1.5981]
[1738970437969,23.60030132,191.41,191.33,5.2255]
[1738970438165,23.60030132,191.38,191.28,1.5981]
[1738970438569,23.60030132,191.38,191.35,0.03331427]
[1738970438768,23.60030132,191.38,191.31,5.2262]
[1738970438973,5.2252,191.36,191.31,5.2262]
[1738970439175,5.2252,191.36,191.35,0.03590816]
[1738970440572,23.63789832,191.38,191.3,5.2265]
[1738970440768,5.2258,191.33,191.3,5.2265]
[1738970441875,5.260779,191.33,191.3,5.26256688]
[1738970442567,5.2261,191.32,191.3,0.03606688]
[1738970443971,5.2263,191.31,191.3,0.03606688]
[1738970446375,0.034979,191.33,191.3,5.26236688]
[1738970446577,0.034979,191.33,191.3,0.03606688]
[1738970447871,0.034979,191.33,191.32,5.226]
[1738970448071,23.60030132,191.41,191.3,0.03606688]
[1738970448274,214.60030132,191.44,191.37,5.2246]
[1738970448469,23.60030132,191.44,191.37,5.2246]
[1738970449574,0.03742882,191.42,191.39,0.03511717]
[1738970450273,23.60030132,191.41,191.39,0.03511717]
[1738970451076,5.2238,191.4,191.39,0.03511717]
[1738970451768,23.60030132,191.41,191.31,1.5863]
[1738970451972,23.60030132,191.37,191.26,3.1197]